[Event "WR Chess Masters-TB 2023"]
[Site "Duesseldorf"]
[Date "2023.02.25"]
[Round "1"]
[White "Nepomniachtchi, Ian"]
[Black "Aronian, Levon"]
[Result "0-1"]
[ECO "A28"]
[WhiteElo "2793"]
[BlackElo "2736"]
[Annotator "TA"]
[PlyCount "92"]
[EventDate "2023.02.16"]
[EventCountry "GER"]
[SourceTitle "playchess.com"]
[Source "ChessBase"]
[SourceQuality "1"]
[TimeControl "600+2"]

{[%evp 11,92,0,4,-7,0,-13,-4,-8,-13,-31,-30,-35,-19,-16,-19,-60,-43,-41,-27,-34,-33,-42,-41,-48,-43,-47,-40,-64,-66,-86,-47,-43,-38,-78,-68,-96,-79,-105,-105,-94,-72,-107,-77,-79,-78,-86,-84,-70,-54,-58,-34,-92,-37,-47,-40,-64,-68,-43,-39,-209,-183,-196,-167,-189,-139,-147,-150,-256,-222,-226,-208,-236,-204,-285,-244,-237,-118,-652,-301,-612,-252,-922,-900]} 1. c4 {[%emt 0:00:01]} Nf6 {[%emt 0:00:03]} 2. Nc3 {[%emt 0:00:02]} e5 {[%emt 0:00:02]} 3. Nf3 {[%emt 0:00:01]} Nc6 {[%emt 0:00:01]} 4. a3 {[%emt 0:00:01]} d5 {[%emt 0:00:05]} 5. cxd5 {[%emt 0:00:02]} Nxd5 {[%emt 0:00:01]} 6. Qc2 {[%emt 0:00:01]} Nxc3 $1 {[%emt 0:00:02][%mdl 4] now scores much better than the old 6...Be7.} 7. bxc3 {[%emt 0:00:02] A28: English Opening: Four Knights Variation.} Bd6 {[%emt 0:00:12]} 8. e3 {[%emt 0:00:04]} O-O {[%emt 0:00:28]} 9. d4 {[%emt 0:00:01] The position is equal.} Bg4 {[%emt 0:00:28] [#]} 10. Bd3 $146 {[%emt 0:00:09]} ({Predecessor:} 10. Be2 Re8 11. dxe5 Bxe5 12. Nxe5 Nxe5 13. f3 Be6 14. O-O Bc4 15. e4 Qf6 16. Be3 {½-½ Soltau,A (2541)-Voiculescu,C (2522) W-ch32 q03 email 2012}) 10... Bxf3 {[%emt 0:00:24]} 11. gxf3 {[%emt 0:00:12]} (11. Bxh7+ Kh8 12. gxf3 g6 13. Bxg6 fxg6 14. Qxg6 Qh4 $17) 11... Qh4 {[%emt 0:00:01]} 12. Bb2 {[%emt 0:00:11]} g6 {[%emt 0:00:32]} (12... Rfe8 {with more complications.} 13. Ke2 g6 14. Be4 f5) 13. d5 {[%emt 0:00:33]} Na5 {[%emt 0:00:21]} 14. c4 {[%emt 0:00:01]} b6 {[%emt 0:00:01]} 15. O-O-O {[%emt 0:00:16]} Nb7 {[%emt 0:00:02]} 16. Rdg1 {[%emt 0:00:49]} Nc5 {[%emt 0:00:09]} 17. Bf1 $1 {[%emt 0:00:05]} f5 $36 {[%emt 0:00:22][%mdl 2048] Prevents Rg4. Black is pushing.} 18. Rg3 {[%emt 0:00:14]} Rae8 {[%emt 0:00:26]} 19. Rhg1 {[%emt 0:00:27]} Rf7 {[%emt 0:00:21]} 20. Kb1 {[%emt 0:00:11]} Kf8 {[%emt 0:00:27][%cal Bg8f8,Bf8e7,Be7d8,Bd8c8][%mdl 32] Black is much more active.} (20... Qxh2 $6 21. Bh3 $11) 21. Rh3 {[%emt 0:00:13]} Qf6 {[%emt 0:00:33]} 22. Be2 {[%emt 0:00:52]} Ke7 {[%emt 0:00:15]} 23. Bd1 {[%emt 0:00:14]} Kd8 {[%emt 0:00:08]} 24. Qe2 {[%emt 0:00:08]} Qe7 {[%emt 0:00:15]} 25. Bc2 {[%emt 0:00:09]} Kc8 {[%emt 0:00:04]} 26. Ka2 {[%emt 0:00:14]} Qd7 {[%emt 0:00:10]} 27. Rhg3 {[%emt 0:00:15]} f4 {[%emt 0:00:49]} 28. Rg4 {[%emt 0:00:47]} e4 $1 {[%emt 0:00:33] And now ...exf3 would win.} 29. exf4 {[%emt 0:00:20][%cal Rf3e4]} exf3 {[%emt 0:00:03]} (29... Rfe7 $5 {[%cal Re4f3]}) 30. Qxf3 {[%emt 0:00:02][%cal Of4f5]} Kb7 {[%emt 0:00:33]} 31. f5 {[%emt 0:00:22]} Be5 {[%emt 0:00:19]} (31... Bxh2 $17 {[%cal Rg6f5]} 32. Rd1 Be5) 32. d6+ {[%emt 0:00:42]} c6 {[%emt 0:00:05][%cal Rg6f5]} 33. Bxe5 {[%emt 0:00:14]} Rxe5 {[%emt 0:00:01]} 34. Rd1 {[%emt 0:00:02]} gxf5 {[%emt 0:00:11]} 35. Rg8 {[%emt 0:00:09] [#]} ({White should try} 35. Rf4 $15) 35... Qe6 $1 $19 {[%emt 0:00:07]} 36. Qc3 {[%emt 0:01:13] [#]} Rd7 $1 {[%emt 0:00:01][%csl LRd6,LRg8] ...Re2 would be deadly.} (36... Re2 37. Kb1 $17) 37. Kb1 {[%emt 0:00:30]} Ne4 {[%emt 0:00:23]} (37... Qxg8 38. Qxe5 Qxc4 39. Qxf5 $15) (37... Rxd6 $19 38. Rxd6 Qxd6) 38. Bxe4 $17 {[%emt 0:00:06]} fxe4 {[%emt 0:00:22]} 39. Qd4 {[%emt 0:01:11]} (39. Qg3 $17) 39... Qxg8 {[%emt 0:00:20]} 40. Qxe5 {[%emt 0:00:01]} Qxc4 $19 {[%emt 0:00:01][%mdl 4096] Endgame Hoping for ...Qb3+. KQR-KQR} 41. Qg3 {[%emt 0:00:07] Dodges Qb3+} Qe6 {[%emt 0:00:20]} 42. Kb2 {[%emt 0:00:05]} c5 {[%emt 0:00:11]} 43. Qf4 {[%emt 0:00:01]} Rf7 {[%emt 0:00:18]} ({Don't blunder} 43... Qc4 $2 44. Rd2) (43... b5 $19 {is more deadly. White must now prevent ...Kb6.} 44. Re1 Rf7 45. Rxe4 Rxf4 46. Rxe6 Rxf2+ 47. Kc3 Kc6) 44. Qe3 $2 {[%emt 0:00:05][%mdl 8192]} (44. d7 $17 Rxd7 45. Rxd7+ Qxd7 46. Qxe4+ Kc7 47. Qf4+ Kb7 48. Qe4+ Kc7 49. Qf4+ Kc6 50. Qe4+ Kd6 51. Qf4+ Kc6 52. Qe4+ Kc7) 44... Kc6 {[%emt 0:00:08]} (44... Rf3 $142 45. Qe2 Qb3+ {[%mdl 64] Deflection} 46. Ka1 Qa4) 45. Kb1 $2 {[%emt 0:00:02]} (45. Qe2) 45... Rd7 {[%emt 0:00:08]} ({And not} 45... Rf3 46. d7 Rxe3 47. d8=N+ Kb5 48. Nxe6 $11 (48. a4+ Kxa4 49. Nxe6 Re2 $17)) (45... Kd7 $142 {...Rf3 is the strong threat.} 46. Re1 Rf3 47. Qxf3 exf3 48. Rxe6 Kxe6) 46. Qf4 {[%emt 0:00:01]} (46. f3) 46... Qb3+ {[%emt 0:00:03] Weighted Error Value: White=0.58/Black=0.30} ({Inferior is} 46... Rxd6 47. Rxd6+ Qxd6 48. Qxe4+ Qd5 49. Qe8+ Kb7 50. Qe3 $17) 0-1

[Event "WR Chess Masters-TB 2023"]
[Site "Duesseldorf"]
[Date "2023.02.25"]
[Round "1"]
[White "Aronian, Levon"]
[Black "Gukesh D"]
[Result "1-0"]
[ECO "D38"]
[WhiteElo "2736"]
[BlackElo "2718"]
[Annotator "TA"]
[PlyCount "89"]
[EventDate "2023.02.16"]
[EventCountry "GER"]
[SourceTitle "playchess.com"]
[Source "ChessBase"]
[SourceQuality "1"]
[TimeControl "600+2"]

{[%evp 12,89,11,19,18,6,10,11,12,9,39,25,37,7,31,24,51,34,86,58,55,56,47,33,54,27,34,34,27,24,30,15,111,46,108,68,102,105,86,84,94,93,114,116,123,126,165,169,166,165,166,172,171,158,290,180,273,273,273,264,247,191,180,144,396,396,319,289,775,775,775,745,738,703,672,608,594,412,554,510]} 1. d4 {[%emt 0:00:02]} d5 {[%emt 0:00:01]} 2. Nf3 {[%emt 0:00:02]} Nf6 {[%emt 0:00:01]} 3. c4 {[%emt 0:00:01]} e6 {[%emt 0:00:02]} 4. Nc3 {[%emt 0:00:04]} Bb4 {[%emt 0:00:02]} 5. cxd5 {[%emt 0:00:02]} exd5 {[%emt 0:00:01]} 6. Bg5 {[%emt 0:00:02][%cal Bc1g5,Bg5h4,Bh4g3][%mdl 32]} h6 {[%emt 0:00:04]} 7. Bh4 {[%emt 0:00:02]} O-O {[%emt 0:00:05] D38: Queen's Gambit Declined: Ragozin Defence (4 Nf3 Bb4).} 8. e3 {[%emt 0:00:02]} Bf5 {[%emt 0:00:03]} 9. Qb3 {[%emt 0:00:03]} Bxc3+ {[%emt 0:00:10] The position is equal.} 10. Qxc3 {[%emt 0:00:02]} g5 {[%emt 0:00:04] The modern move.} 11. Bg3 {[%emt 0:00:02]} Ne4 {[%emt 0:00:02]} 12. Qa3 {[%emt 0:00:01]} Nc6 {[%emt 0:00:01] [#]} 13. Nd2 $146 {[%emt 0:01:08]} (13. Rc1 $5 {[%cal Rf1b5]}) ({Predecessor:} 13. Bb5 Ne7 14. Nd2 c6 15. Bd3 Nxd2 16. Kxd2 Bxd3 17. Qxd3 Qa5+ 18. Ke2 f5 19. Bd6 {0-1 Carlsen,M (2876)-Firouzja,A (2702) Chess24 Banter Blitz Cup 2019 (7.1)}) 13... a5 {[%emt 0:00:52]} 14. Nxe4 {[%emt 0:00:21] [#] Threatens to win with Nc3.} (14. Rc1 {seems wilder.} Nb4 15. Qa4 c6 16. Nxe4 dxe4 17. h4) 14... Bxe4 {[%emt 0:00:27]} (14... Nb4 $14 15. Rc1 dxe4) 15. f3 {[%emt 0:00:16]} Bg6 {[%emt 0:00:18]} 16. Bd3 {[%emt 0:00:29]} Bxd3 {[%emt 0:01:11]} 17. Qxd3 {[%emt 0:00:01]} Qd7 {[%emt 0:00:05]} 18. O-O {[%emt 0:00:21]} Ne7 {[%emt 0:00:02]} 19. e4 {[%emt 0:00:15]} c6 {[%emt 0:01:13]} 20. e5 {[%emt 0:00:34]} Qf5 {[%emt 0:00:02] Prevents f4.} 21. Qb3 {[%emt 0:00:07]} b5 {[%emt 0:00:51] [#]} (21... Qg6 $11 {keeps the balance.}) 22. Rac1 {[%emt 0:00:14]} (22. f4 $1 $16 {[%cal Rf4g5]}) 22... Rac8 {[%emt 0:00:02]} ({Better is} 22... Qg6 $14) 23. Qa3 {[%emt 0:01:00]} Ng6 {[%emt 0:00:02]} 24. Qxa5 {[%emt 0:00:10] White is more active.} h5 {[%emt 0:00:06]} 25. Qd2 {[%emt 0:00:07]} h4 {[%emt 0:00:05]} 26. Bf2 {[%emt 0:00:37]} f6 {[%emt 0:00:24]} 27. exf6 {[%emt 0:00:18]} Rxf6 {[%emt 0:00:01]} 28. h3 {[%emt 0:00:11]} Re6 {[%emt 0:00:42]} 29. Rfe1 {[%emt 0:00:03]} Rce8 {[%emt 0:00:14]} 30. Rxe6 {[%emt 0:00:07]} (30. Rxc6 Rxe1+ 31. Bxe1 Nf4 $11) 30... Rxe6 {[%emt 0:00:01]} 31. Be3 {[%emt 0:00:16] Prevents Qf4.} Nf4 {[%emt 0:00:57]} 32. Bxf4 {[%emt 0:00:04]} gxf4 {[%emt 0:01:01]} (32... Qxf4 $16 33. Qxf4 gxf4) 33. Re1 {[%emt 0:00:02]} Rxe1+ {[%emt 0:00:09]} (33... Re3 $142 34. Rxe3 fxe3 35. Qxe3 Qb1+ 36. Kh2 Qxb2 37. Qe8+ Kg7) 34. Qxe1 $18 {[%emt 0:00:01][%mdl 4096] Endgame KQ-KQ} Qf6 {[%emt 0:00:01]} 35. Qd2 {[%emt 0:00:25]} Qd6 {[%emt 0:00:31]} 36. Kf1 {[%emt 0:00:24]} Kg7 {[%emt 0:00:25]} 37. b3 {[%emt 0:00:54]} b4 $2 {[%emt 0:00:08][%mdl 8192] Loses the game.} (37... Qa3 $16 38. Kg1 (38. Qxf4 Qxa2 39. Qxh4 Qxb3 $14) 38... c5 39. Qxf4 c4 40. Qxh4 Qxa2) 38. Qe1 {[%emt 0:00:06]} Qg6 {[%emt 0:00:45]} 39. Kg1 {[%emt 0:00:18]} (39. Qxh4 Qd3+ 40. Kg1 Qxd4+ 41. Kh2 Qf6 42. Qg4+ Kh7 $14) (39. Qxb4 Qb1+ 40. Qe1 Qd3+ 41. Qe2 Qxd4 $16) 39... Qc2 $2 {[%emt 0:00:06]} (39... Qd6 40. Kh2 (40. Qxh4 c5 $18) 40... c5 41. dxc5 (41. Qxh4 c4 $16) 41... Qxc5 42. Qe5+ (42. Qxh4 Qd6 $16) 42... Kh7 43. Qh5+ Kg7 44. Qe5+ (44. Qxh4 Qd6 $18) 44... Kg8 45. Qg5+ (45. Qxf4 d4 $18) 45... Kf7 46. Qxf4+ Ke6 47. Qxh4 Qc3 48. Qg4+ Kd6 49. Qg6+ Kd7 50. Qf5+ Kd6) 40. Qxb4 {[%emt 0:00:16] Hoping for a4.} Qxa2 {[%emt 0:00:01]} 41. Qb7+ {[%emt 0:00:08]} Kg8 {[%emt 0:00:02]} 42. Qb8+ {[%emt 0:00:03]} Kg7 {[%emt 0:00:02]} 43. Qc7+ {[%emt 0:00:02]} Kg8 {[%emt 0:00:01]} 44. Qd8+ {[%emt 0:00:03]} ({Weaker is} 44. Qxf4 Qb1+ 45. Kh2 Qe1 46. Qg4+ Kf8 47. Qf5+ Kg8 48. Qg6+ Kh8 $18) 44... Kg7 {[%emt 0:00:03]} 45. Qg5+ {[%emt 0:00:02] Weighted Error Value: White=0.22 (precise) /Black=0.32} 1-0

[Event "WR Chess Masters-TB 2023"]
[Site "Duesseldorf"]
[Date "2023.02.25"]
[Round "1"]
[White "Gukesh D"]
[Black "Nepomniachtchi, Ian"]
[Result "1-0"]
[ECO "D35"]
[WhiteElo "2718"]
[BlackElo "2793"]
[Annotator "TA"]
[PlyCount "123"]
[EventDate "2023.02.16"]
[EventCountry "GER"]
[SourceTitle "playchess.com"]
[Source "ChessBase"]
[SourceQuality "1"]
[TimeControl "600+2"]

{[%evp 13,123,-5,4,2,7,0,0,0,0,0,0,0,0,0,2,0,11,0,0,0,0,0,8,2,22,21,10,-4,-12,-12,-13,-17,-16,-34,-13,-22,0,-32,-20,-46,-37,-55,-14,-35,-22,-22,-29,-27,-28,-20,-23,-15,-21,-37,-41,-40,-49,-46,-45,-58,-53,-67,0,-41,-60,-22,0,0,0,0,0,0,0,0,35,13,9,0,0,0,8,8,16,11,9,13,37,0,44,49,49,49,49,49,49,25,25,0,426,397,354,73,382,381,374,368,296,354,29985,29986,29985,29986]} 1. d4 {[%emt 0:00:02]} Nf6 {[%emt 0:00:01]} 2. c4 {[%emt 0:00:01]} e6 {[%emt 0:00:01]} 3. Nf3 {[%emt 0:00:02]} d5 {[%emt 0:00:01]} 4. Nc3 {[%emt 0:00:01]} Be7 {[%emt 0:00:01]} 5. cxd5 {[%emt 0:00:02]} exd5 {[%emt 0:00:02]} 6. Bf4 {[%emt 0:00:01]} c6 {[%emt 0:00:17]} 7. e3 {[%emt 0:00:01]} Bf5 {[%emt 0:00:03]} 8. Nh4 $1 {[%emt 0:00:02][%mdl 4] outshines the older 8.Bd3. D35: Queen's Gambit Declined: Exchange Variation.} Bg4 {[%emt 0:00:24]} 9. Qc2 {[%emt 0:00:01]} Nh5 {[%emt 0:00:14] Hoping for ...Nxf4.} 10. h3 {[%emt 0:00:01] The position is equal.} Be6 {[%emt 0:00:59]} 11. Nf3 {[%emt 0:00:01]} Nxf4 {[%emt 0:00:42]} 12. exf4 {[%emt 0:00:02]} Bd6 {[%emt 0:00:01] [#]} 13. g3 $146 {[%emt 0:00:22]} ({Predecessor:} 13. f5 Bd7 14. Bd3 O-O 15. O-O Na6 16. Bxa6 bxa6 17. Rae1 Qf6 18. g4 h5 19. Kg2 {½-½ Ypma,H-Kelbl,J (1871) Van Perlo Memorial-B email 2010 [1]}) 13... Qf6 {[%emt 0:00:14]} 14. Bd3 {[%emt 0:00:07]} g6 {[%emt 0:00:06]} 15. O-O-O {[%emt 0:00:03]} Nd7 {[%emt 0:00:07][%cal Bb8d7,Bd7b6,Bb6c8,Bc8d6][%mdl 32]} 16. Ne5 {[%emt 0:00:10]} Nb6 {[%emt 0:00:29]} 17. Kb1 {[%emt 0:00:35]} O-O-O {[%emt 0:00:13]} 18. Nb5 {[%emt 0:01:09]} Kb8 {[%emt 0:00:01]} 19. Nxd6 {[%emt 0:00:02]} Rxd6 {[%emt 0:00:01]} 20. b3 {[%emt 0:00:04]} Nc8 {[%emt 0:00:15]} 21. h4 {[%emt 0:00:29]} Rdd8 {[%emt 0:00:08][%cal Bd6d8,Bd8c8,Bc8c7][%mdl 32]} 22. Rc1 {[%emt 0:00:40]} Nd6 {[%emt 0:00:05]} 23. Rhe1 {[%emt 0:00:02]} Rc8 {[%emt 0:00:08]} 24. Qd2 {[%emt 0:00:20]} Rhd8 {[%emt 0:00:06][%cal Od6e4]} 25. f3 {[%emt 0:00:20]} Bf5 {[%emt 0:00:16]} 26. Bxf5 {[%emt 0:00:09]} Qxf5+ {[%emt 0:01:04]} 27. Ka1 {[%emt 0:00:10]} Rc7 {[%emt 0:00:02]} 28. Nd3 {[%emt 0:00:30]} Qf6 {[%emt 0:00:10]} 29. Re5 {[%emt 0:00:05]} Nf5 {[%emt 0:00:06]} 30. Qf2 {[%emt 0:00:12]} Qd6 {[%emt 0:00:11]} 31. g4 {[%emt 0:00:00]} Ng7 {[%emt 0:00:09]} 32. Rce1 {[%emt 0:00:38]} b6 {[%emt 0:00:02]} 33. h5 {[%emt 0:00:27]} f6 {[%emt 0:00:23]} 34. R5e2 {[%emt 0:00:08] Black must now prevent h6.} gxh5 {[%emt 0:00:01]} 35. f5 {[%emt 0:00:10]} Kb7 {[%emt 0:00:19]} 36. Kb2 {[%emt 0:00:38]} a5 {[%emt 0:00:03]} 37. a4 {[%emt 0:00:01]} Rdd7 {[%emt 0:00:03]} (37... Rf7 $15) 38. Qh2 {[%emt 0:00:44]} Qxh2 {[%emt 0:00:42]} 39. Rxh2 {[%emt 0:00:01]} hxg4 {[%emt 0:00:20]} 40. fxg4 {[%emt 0:00:01]} h5 {[%emt 0:00:01][%mdl 64] Deflection} 41. gxh5 {[%emt 0:00:07]} Nxf5 {[%emt 0:00:02]} 42. Rf1 {[%emt 0:00:01]} Nxd4 {[%emt 0:00:04]} 43. Rxf6 {[%emt 0:00:01]} Rh7 {[%emt 0:00:08]} 44. h6 {[%emt 0:00:01][%mdl 1024] Black should prevent Kc3. White has compensation.} (44. Rh4 $5 {[%cal Rh4d4]}) 44... Rce7 {[%emt 0:00:03]} 45. Kc3 {[%emt 0:00:26]} Ne2+ {[%emt 0:00:03]} 46. Kd2 {[%emt 0:00:13]} Ng3 {[%emt 0:00:01] aiming for ...Ne4+.} 47. Kc2 {[%emt 0:00:01]} Ne4 {[%emt 0:00:07]} 48. Rg6 {[%emt 0:00:01]} Rhf7 {[%emt 0:00:17] Inhibits Nf4.} 49. Rhg2 {[%emt 0:00:38]} Nf6 {[%emt 0:00:41]} 50. Rf2 {[%emt 0:00:02]} Ne4 {[%emt 0:01:16]} (50... Nd7 $5 {[%cal Rf7f2]} 51. Rfg2 Nf6 $11) 51. Rxf7 {[%emt 0:00:12]} Rxf7 $14 {[%emt 0:00:01][%mdl 4096] Endgame KRN-KRN} 52. Ne5 {[%emt 0:00:10]} Rf2+ {[%emt 0:00:00]} 53. Kd3 {[%emt 0:00:17] Strongly threatening Rg7+.} Rh2 {[%emt 0:00:06]} 54. Rg7+ {[%emt 0:00:03]} (54. Nxc6 {simplifies} Nc5+ 55. Kd4 Nxb3+ 56. Kxd5 Rh5+ 57. Kd6) 54... Ka6 $1 {[%emt 0:00:03]} 55. h7 {[%emt 0:00:31]} Nf6 $2 {[%emt 0:00:01][%mdl 8192]} (55... Nc5+ $11 56. Kc3 b5 57. Nxc6 b4+ 58. Nxb4+ axb4+ 59. Kxb4 Ne4) 56. Nxc6 $18 {[%emt 0:00:06][%cal Rc6b8]} b5 {[%emt 0:00:00]} 57. Rg6 $2 {[%emt 0:00:24]} (57. Nb8+ $18 {is the precise move to win.} Kb6 58. Rg6 Rxh7 59. Rxf6+ Kb7 60. Na6 bxa4 61. Nc5+ Kc7 62. Ne6+ Kb8 63. bxa4) 57... Nxh7 $2 {[%emt 0:00:02][%mdl 8192] [#] Black cannot hold the game after this.} (57... Rh3+ $16 {is tougher.} 58. Ke2 Rh2+ 59. Ke3 Rh3+ 60. Kf4 Nxh7) 58. Nd8+ $1 {[%emt 0:00:03]} Ka7 {[%emt 0:00:02]} 59. axb5 {[%emt 0:00:01][%cal Ba4b5,Bb5b6,Bb6b7][%mdl 32] b6+ would be deadly.} Nf8 {[%emt 0:00:17]} 60. b6+ {[%emt 0:00:03]} ({Don't do} 60. Ra6+ $6 Kb8 61. Nc6+ (61. Rxa5 Rh3+ 62. Kc2 Kc7 $14) 61... Kc7 $16) 60... Ka6 $2 {[%emt 0:00:01]} (60... Kb8 $18 61. Rd6 Rh3+ 62. Kc2 Rh2+ 63. Kc1 Re2 64. Nc6+ (64. Rxd5 Ne6 $18) 64... Kc8 65. Nxa5 Re8 66. Rxd5 Nd7) 61. b7+ {[%emt 0:00:02]} Ka7 {[%emt 0:00:04] [#]} 62. Ra6+ $3 {[%emt 0:00:02][%mdl 576] Promotion.   Weighted Error Value: White=0.14 (very precise) /Black=0.33} 1-0